[Event "VII Copa Marcel Duchamp 2024"]
[Site "Montevideo"]
[Date "2024.02.06"]
[Round "5.1"]
[White "Meier, Georg"]
[Black "Krysa, Leandro"]
[Result "1-0"]
[ECO "D02"]
[WhiteElo "2620"]
[BlackElo "2541"]
[Annotator "RC"]
[PlyCount "99"]
[EventDate "2024.02.05"]
[EventType "swiss"]
[EventCountry "URU"]
[SourceTitle "playchess.com"]
[Source "ChessBase"]
[SourceQuality "1"]
[TimeControl "5400+30"]

1. Nf3 {[%emt 0:00:02]} d5 {[%emt 0:00:10]} 2. g3 {[%emt 0:00:09]} Nc6 {[%emt 0:00:11]} 3. d4 {[%emt 0:00:37]} Bf5 {[%emt 0:00:16]} 4. Bg2 {[%emt 0:00:27]} Nb4 {[%emt 0:00:25]} 5. Na3 {[%emt 0:00:08]} e6 {[%emt 0:00:28]} 6. O-O {[%emt 0:01:06]} Be7 {[%emt 0:00:31]} 7. Ne5 {[%emt 0:02:26]} Nf6 {[%emt 0:01:19]} 8. c3 {[%emt 0:00:08]} Nc6 {[%emt 0:00:15]} 9. Qa4 {[%emt 0:00:19]} O-O {[%emt 0:00:34]} 10. Nxc6 {[%emt 0:00:58]} bxc6 {[%emt 0:00:06]} 11. Qxc6 {[%emt 0:00:15]} Rb8 {[%emt 0:00:50]} 12. c4 {[%emt 0:00:41]} Qc8 {[%emt 0:02:37]} 13. cxd5 {[%emt 0:11:21]} exd5 {[%emt 0:00:43]} 14. Nb1 {[%emt 0:07:25]} Re8 {[%emt 0:10:27]} 15. a3 {[%emt 0:26:46]} Bd6 {[%emt 0:29:23]} 16. Bg5 {[%emt 0:12:13]} Ne4 {[%emt 0:03:21]} 17. Bc1 {[%emt 0:00:06]} h5 {[%emt 0:17:13]} 18. Qxd5 {[%emt 0:03:31]} h4 {[%emt 0:01:12]} 19. Bf3 {[%emt 0:05:10]} c6 {[%emt 0:13:45]} 20. Qc4 {[%emt 0:01:04]} Bh3 {[%emt 0:01:29]} 21. Rd1 {[%emt 0:03:10]} hxg3 {[%emt 0:07:44]} 22. hxg3 {[%emt 0:00:24]} Qf5 {[%emt 0:03:04]} 23. Qd3 {[%emt 0:09:59]} Bg4 {[%emt 0:02:51]} 24. Nc3 {[%emt 0:08:29]} Nxc3 {[%emt 0:01:51]} 25. bxc3 {[%emt 0:02:48]} Qxd3 {[%emt 0:00:28]} 26. Rxd3 {[%emt 0:00:06]} Bxf3 {[%emt 0:00:06]} 27. Rxf3 {[%emt 0:00:05]} Rxe2 {[%emt 0:00:08]} 28. Bf4 {[%emt 0:00:47]} Bxf4 {[%emt 0:00:27]} 29. Rxf4 {[%emt 0:00:02]} Rbb2 {[%emt 0:02:05]} 30. c4 {[%emt 0:02:16]} g6 {[%emt 0:00:52]} 31. Rd1 {[%emt 0:00:49]} Rbd2 {[%emt 0:00:36]} 32. Rb1 {[%emt 0:00:45]} Rb2 {[%emt 0:00:17]} 33. Rxb2 {[%emt 0:00:12]} Rxb2 {[%emt 0:00:04]} 34. Rf6 {[%emt 0:02:46]} Rd2 {[%emt 0:01:11]} 35. Rd6 {[%emt 0:00:00]} Kf8 {[%emt 0:00:29]} 36. c5 {[%emt 0:00:00]} Ke7 {[%emt 0:00:30]} 37. Kf1 {[%emt 0:00:00]} a5 {[%emt 0:00:19]} 38. Ke1 {[%emt 0:00:27]} Ra2 {[%emt 0:00:41]} 39. Rxc6 {[%emt 0:00:06]} Rxa3 {[%emt 0:00:05]} 40. Ke2 {[%emt 0:00:54]} Kd7 {[%emt 0:00:56]} 41. Rf6 {[%emt 0:01:01]} a4 {[%emt 0:00:30]} 42. Rxf7+ {[%emt 0:00:42]} Kc6 {[%emt 0:00:10]} 43. Rf6+ {[%emt 0:00:32]} Kb5 {[%emt 0:00:23]} 44. Rxg6 {[%emt 0:00:16]} Rc3 {[%emt 0:00:34]} 45. Kd2 {[%emt 0:00:40]} Rf3 {[%emt 0:00:47]} 46. Ke2 {[%emt 0:00:38]} Rc3 {[%emt 0:00:31]} 47. Rb6+ {[%emt 0:00:07]} Kc4 {[%emt 0:00:16]} 48. c6 {[%emt 0:00:18]} a3 {[%emt 0:00:47]} 49. c7 {[%emt 0:00:48]} Kxd4 {[%emt 0:00:31]} 50. Ra6 {[%emt 0:00:05]} 1-0

[Event "VII Copa Marcel Duchamp 2024"]
[Site "Montevideo"]
[Date "2024.02.05"]
[Round "5.2"]
[White "Hoffman, Alejandro"]
[Black "Salinas Herrera, Pablo"]
[Result "1/2-1/2"]
[ECO "D30"]
[WhiteElo "2358"]
[BlackElo "2477"]
[Annotator "TA"]
[PlyCount "23"]
[EventDate "2024.02.05"]
[EventType "swiss"]
[EventCountry "URU"]
[SourceTitle "playchess.com"]
[Source "ChessBase"]
[SourceQuality "1"]
[TimeControl "5400+30"]

{[%evp 18,23,14,16,32,13,32,28]} 1. d4 {[%emt 0:00:05]} d5 {[%emt 0:00:08]} 2. c4 {[%emt 0:00:12]} c6 {[%emt 0:00:44]} 3. Nf3 {[%emt 0:00:12]} Nf6 {[%emt 0:00:04]} 4. e3 {[%emt 0:00:16]} e6 {[%emt 0:00:06]} 5. Nbd2 {[%emt 0:00:19]} Nbd7 {[%emt 0:00:11]} 6. Bd3 {[%emt 0:00:10]} Be7 {[%emt 0:00:06]} 7. O-O {[%emt 0:00:25]} O-O {[%emt 0:00:04]} 8. b3 {[%emt 0:00:47]} b6 {[%emt 0:00:07]} 9. Bb2 {[%emt 0:00:16]} Bb7 {[%emt 0:00:04]} 10. Qe2 {[%emt 0:00:27]} Qc7 {[%emt 0:00:07]} 11. Rad1 {[%emt 0:10:32]} Rad8 {[%emt 0:02:39]} 12. Ne5 {[%emt 0:05:29] A rather calm draw.   Weighted Error Value: White=0.10 (very precise) /Black=0.18 (very precise)} 1/2-1/2

[Event "VII Copa Marcel Duchamp 2024"]
[Site "Montevideo"]
[Date "2024.02.06"]
[Round "5.3"]
[White "Tristan, Leonardo"]
[Black "Mussanti, Diego"]
[Result "1-0"]
[ECO "D02"]
[WhiteElo "2515"]
[BlackElo "2202"]
[Annotator "TA"]
[PlyCount "103"]
[EventDate "2024.02.05"]
[EventType "swiss"]
[EventCountry "URU"]
[SourceTitle "playchess.com"]
[Source "ChessBase"]
[SourceQuality "1"]
[TimeControl "5400+30"]

{[%evp 9,103,-20,17,28,30,18,58,68,83,11,30,30,34,33,30,0,18,16,23,18,18,15,20,18,19,17,38,36,45,19,13,23,27,4,9,11,12,0,0,0,10,10,9,8,4,0,5,0,0,0,0,0,0,0,0,0,0,0,0,0,0,0,0,0,56,54,92,92,92,92,50,42,59,68,295,307,301,279,959,950,833,662,1478,1412,1184,933,29962,29965,29982,29983,29983,29984,29985,29986,29985,29986]} 1. d4 {[%emt 0:00:04]} d5 {[%emt 0:00:12]} 2. Nf3 {[%emt 0:00:13]} Nf6 {[%emt 0:00:10]} 3. c3 {[%emt 0:00:09][%cal Bc2c3,Bc3c4][%mdl 32]} c5 {[%emt 0:00:35]} 4. dxc5 {[%emt 0:00:16]} e6 {[%emt 0:00:19]} 5. Be3 {[%emt 0:00:38]} a5 {[%emt 0:05:55] [#]} 6. c4 $1 {[%emt 0:01:07]} Na6 {[%emt 0:01:41]} 7. cxd5 {[%emt 0:03:50]} Bxc5 {[%emt 0:12:23]} 8. Bxc5 {[%emt 0:13:09] White is slightly better.} Nxc5 {[%emt 0:00:14] [#]} 9. Nc3 {[%emt 0:00:15]} (9. dxe6 $1 $16 Qxd1+ 10. Kxd1) 9... exd5 {[%emt 0:01:50]} 10. e3 {[%emt 0:03:04]} O-O {[%emt 0:00:13]} 11. Be2 {[%emt 0:00:28]} Qb6 {[%emt 0:01:45]} 12. Qd2 {[%emt 0:23:16]} Nce4 {[%emt 0:06:21]} 13. Nxe4 {[%emt 0:01:21]} dxe4 {[%emt 0:00:27]} 14. Nd4 {[%emt 0:00:10]} Bg4 {[%emt 0:00:41]} 15. O-O {[%emt 0:02:31]} Bxe2 {[%emt 0:02:36]} 16. Qxe2 {[%emt 0:00:11]} Rac8 {[%emt 0:09:23]} 17. Rac1 {[%emt 0:06:40]} Rc5 {[%emt 0:00:52]} 18. Rxc5 {[%emt 0:04:04]} Qxc5 {[%emt 0:00:20]} 19. Qd2 {[%emt 0:03:31]} Rc8 {[%emt 0:08:46]} 20. Nb3 {[%emt 0:03:45]} Qe5 {[%emt 0:07:03]} 21. Rc1 {[%emt 0:14:49]} ({Much worse is} 21. Nxa5 Ng4 22. g3 Qh5 $11) 21... Rxc1+ {[%emt 0:01:47]} 22. Qxc1 $11 {[%emt 0:00:04][%mdl 4096] Endgame. KQN-KQN} h5 {[%emt 0:07:16]} 23. Qc8+ {[%emt 0:04:41]} Kh7 {[%emt 0:00:42]} 24. Nd4 {[%emt 0:00:05]} Qd5 {[%emt 0:03:20]} 25. Qf5+ {[%emt 0:02:00]} Kg8 $1 {[%emt 0:02:51]} 26. Qxd5 {[%emt 0:11:03]} Nxd5 {[%emt 0:00:07] KN-KN} 27. Kf1 {[%emt 0:01:50]} g6 {[%emt 0:06:44]} 28. Nb5 {[%emt 0:00:04]} f5 {[%emt 0:02:10]} 29. Ke2 {[%emt 0:00:30]} Nb4 {[%emt 0:01:59]} 30. Nd6 {[%emt 0:00:41]} b6 {[%emt 0:05:05]} 31. a3 {[%emt 0:00:13]} Nd3 {[%emt 0:02:30]} 32. Nc4 {[%emt 0:00:07][%cal Of2f4]} b5 {[%emt 0:00:57]} 33. Nxa5 {[%emt 0:00:11]} Nxb2 {[%emt 0:00:09]} 34. f3 {[%emt 0:01:48]} Kf7 {[%emt 0:01:25]} 35. fxe4 {[%emt 0:00:10]} fxe4 {[%emt 0:00:07]} 36. Kd2 {[%emt 0:00:09]} Nd3 {[%emt 0:01:29]} (36... Ke6 $11) 37. Nc6 $14 {[%emt 0:00:51]} Nb2 {[%emt 0:02:18]} 38. Kc3 {[%emt 0:00:45]} Nc4 {[%emt 0:00:18] [#]} 39. a4 $1 {[%emt 0:00:29][%cal Ba3a4,Ba4b5,Bb5b6][%mdl 32]} Nxe3 {[%emt 0:00:36]} (39... Ke6 40. Kd4) 40. axb5 {[%emt 0:00:35] aiming for Kd4.} Ke6 {[%emt 0:01:57][%cal Og6g5]} 41. Kd4 {[%emt 0:00:24][%csl LRe3,LRe4]} Nf5+ {[%emt 0:00:08] This costs Black the game.} (41... Nxg2 $14 42. b6 (42. Kxe4 Kd6 $14) 42... e3) 42. Kxe4 $18 {[%emt 0:00:46] And now Nd4+ would win.} Nd6+ {[%emt 0:00:07] [#]} 43. Kf4 $1 {[%emt 0:00:02] Hoping for b6.} Kf6 $2 {[%emt 0:03:31]} (43... Nxb5 44. Kg5 h4) 44. b6 {[%emt 0:00:23]} g5+ {[%emt 0:00:08][%cal Bg6g5,Bg5g4][%mdl 32]} 45. Kf3 {[%emt 0:00:11]} Nb7 {[%emt 0:00:35] Prevents Nd8.} 46. Ke4 {[%emt 0:00:22]} Ke6 {[%emt 0:01:06]} 47. Nd4+ {[%emt 0:00:05]} Kf6 {[%emt 0:00:07]} 48. Kd5 {[%emt 0:00:08] White mates.} g4 {[%emt 0:00:23]} 49. Kc6 {[%emt 0:00:17]} Na5+ {[%emt 0:00:05]} 50. Kc7 {[%emt 0:00:05]} h4 {[%emt 0:00:23]} 51. Nc6 {[%emt 0:00:31]} Nb3 {[%emt 0:00:18]} 52. Kd6 {[%emt 0:00:13] Weighted Error Value: White=0.06 (flawless) /Black=0.34.  Loses game:     	---       	Black=1      Mistake:       	White=1     	Black=2      Inaccurate:     	White=2     	Black=2      OK:         	White=14    	Black=13     Best:        	White=5     	Black=2      Strong:       	White=1     	Black=1      Brilliant:      	White=1     	---} 1-0

[Event "VII Copa Marcel Duchamp 2024"]
[Site "Montevideo"]
[Date "2024.02.07"]
[Round "6.1"]
[White "Salinas Herrera, Pablo"]
[Black "Meier, Georg"]
[Result "0-1"]
[ECO "C11"]
[WhiteElo "2477"]
[BlackElo "2620"]
[Annotator "TA"]
[PlyCount "74"]
[EventDate "2024.02.05"]
[EventType "swiss"]
[EventCountry "URU"]
[SourceTitle "playchess.com"]
[Source "ChessBase"]
[SourceQuality "1"]
[TimeControl "5400+30"]

{[%evp 10,74,0,0,9,7,17,-5,0,0,0,0,0,0,0,0,0,-91,-109,-89,-100,-109,-85,-118,-117,-191,-168,-158,-150,-230,-236,-232,-212,-216,-216,-200,-223,-243,-229,-197,-128,-110,-120,-156,-137,-178,-136,-137,-130,-192,-187,-308,-197,-214,-193,-249,-274,-339,-316,-548,-558,-566,-560,-627,-618,-899,-891]} 1. e4 {[%emt 0:02:10]} e6 {[%emt 0:00:07]} 2. d4 {[%emt 0:00:04]} d5 {[%emt 0:00:04]} 3. Nc3 {[%emt 0:00:05]} Nf6 {[%emt 0:00:05]} 4. e5 {[%emt 0:00:04]} Nfd7 {[%emt 0:00:04]} 5. f4 {[%emt 0:00:04]} c5 {[%emt 0:00:05]} 6. Nf3 {[%emt 0:00:03]} Be7 {[%emt 0:00:09]} 7. Be3 {[%emt 0:04:32]} O-O {[%emt 0:00:11]} 8. Ne2 {[%emt 1:27:28]} Qb6 {[%emt 0:04:30] The position is equal.} 9. Rb1 {[%emt 0:00:00]} Qa5+ {[%emt 0:05:48]} 10. c3 {[%emt 0:00:00]} Qxa2 {[%emt 0:00:07]} 11. h4 {[%emt 0:00:00]} Nc6 {[%emt 0:11:14]} 12. Ng5 {[%emt 0:00:00]} f6 {[%emt 0:00:13]} 13. Nc1 {[%emt 0:00:00]} (13. Nxe6 $11 Ndxe5 14. Nxf8) 13... Qxb1 $17 {[%emt 0:02:53]} 14. Bd3 {[%emt 0:00:00] [#]} Qxd3 {[%emt 0:00:25]} 15. Nxd3 {[%emt 0:00:00][%cal Od1h5] And now Qh5! would win.} fxg5 {[%emt 0:06:59]} 16. hxg5 {[%emt 0:00:00]} g6 {[%emt 0:08:24] Dodges Qh5} 17. Qg4 {[%emt 0:00:00] [#]} (17. dxc5 $17 {keeps fighting.} b6 18. Qg4 Nxc5 (18... bxc5 $2 19. Qxe6+ Kg7 20. Qxc6 $18) 19. Nf2) 17... cxd4 $1 $19 {[%emt 0:04:07]} 18. Qh3 {[%emt 0:00:00]} Rf7 {[%emt 0:01:56]} (18... dxe3 19. Qxh7#) 19. f5 {[%emt 0:00:00]} (19. cxd4 $17 Nf8 20. Nf2) 19... Nf8 {[%emt 0:07:22]} (19... dxe3 $2 {loses.} 20. fxg6 (20. fxe6 Nf8 $15) 20... Rg7 21. Qxe6+ Kh8 22. Rxh7+ Rxh7 23. gxh7 $16) (19... gxf5 $2 20. g6 dxe3 (20... Rg7 21. gxh7+ Kh8 22. Bh6 $18) 21. gxf7+ Kxf7 22. Qxh7+ (22. Qxe3 Nf8 $17) 22... Ke8 23. Qg7 $18) 20. fxg6 {[%emt 0:00:00]} Nxg6 {[%emt 0:00:11]} 21. cxd4 {[%emt 0:00:00]} Nb4 {[%emt 0:09:34]} 22. Nf2 {[%emt 0:00:00]} Nc2+ {[%emt 0:00:56]} 23. Kd1 {[%emt 0:00:00]} Nxe3+ {[%emt 0:02:56]} 24. Qxe3 {[%emt 0:00:00] [#]} Rxf2 {[%emt 0:03:01]} 25. Qxf2 $17 {[%emt 0:00:00][%cal Oh1h7] Rxh7! would now be deadly.} Bd7 $1 {[%emt 0:00:18]} (25... Bxg5 $2 {perishes.} 26. Rf1 Bf4 27. g3 $18) 26. Rh3 {[%emt 0:00:00]} Rc8 {[%emt 0:03:18]} 27. Qe3 {[%emt 0:00:00]} Ba4+ {[%emt 0:03:16]} 28. b3 {[%emt 0:00:00]} Be8 {[%emt 0:00:08] Black is more active.} 29. Rh6 {[%emt 0:00:34]} (29. Qd2 $17) 29... Nf8 {[%emt 0:02:15]} 30. Rf6 {[%emt 0:00:14]} (30. Qd2 {might work better.}) 30... Bg6 {[%emt 0:05:02]} 31. Qh3 {[%emt 0:00:13]} Rc6 {[%emt 0:00:12][%cal Oe7b4]} 32. Rf3 {[%emt 0:01:03]} (32. Ke1 $142) 32... Bb4 $19 {[%emt 0:00:30] A strong pair of Bishops.} ({Much less strong is} 32... Bxg5 33. Rc3) 33. Rf2 {[%emt 0:00:56] Prevents Bc2+.} a5 {[%emt 0:01:17] aiming for ...b5.} 34. Rf6 $2 {[%emt 0:00:16]} (34. Qg4) 34... b5 {[%emt 0:00:24] Black is clearly winning.} 35. Rf2 {[%emt 0:00:05]} a4 {[%emt 0:04:04]} 36. bxa4 {[%emt 0:00:04]} bxa4 {[%emt 0:00:06] Strongly threatening ...a3.} 37. Ra2 {[%emt 0:00:02]} Rc3 {[%emt 0:00:31] Weighted Error Value: White=0.49/Black=0.13 (very precise) .  Mistake:       	White=7     	Black=1      Inaccurate:     	White=2     	Black=1      OK:         	White=10    	Black=14     Best:        	White=3     	Black=4      Strong:       	---       	Black=1      Brilliant:      	---       	Black=1} 0-1

[Event "VII Copa Marcel Duchamp 2024"]
[Site "Montevideo"]
[Date "2024.02.07"]
[Round "6.2"]
[White "Schnaider, Ilan"]
[Black "Tristan, Leonardo"]
[Result "0-1"]
[ECO "C45"]
[WhiteElo "2323"]
[BlackElo "2515"]
[Annotator "TA"]
[PlyCount "110"]
[EventDate "2024.02.05"]
[EventType "swiss"]
[EventCountry "URU"]
[SourceTitle "playchess.com"]
[Source "ChessBase"]
[SourceQuality "1"]
[TimeControl "5400+30"]

{[%evp 12,110,18,20,55,58,82,81,72,94,87,80,78,79,85,83,72,83,85,72,74,12,10,-14,-18,-59,-62,-65,-49,-83,-33,-130,-136,-135,-136,-137,-139,-142,-141,-147,-145,-151,-141,-143,-147,-152,-147,-152,-52,-64,-49,-48,-48,-48,-51,-56,-34,-670,-669,-669,-669,-653,-633,-654,-291,-662,-662,-654,-654,-642,-627,-632,-584,-554,-536,-1857,-1601,-975,-642,-29958,-29961,-29963,-29968,-29963,-29961,-29974,-29975,-29972,-29966,-29995,-29988,-29988,-29964,-29995,-29996,-29997,-29996,-29998,-29990,-29990,-693]} 1. e4 {[%emt 0:00:03]} e5 {[%emt 0:00:22]} 2. Nf3 {[%emt 0:00:13][%cal Bg1f3,Bf3d4,Bd4f5][%mdl 32]} Nc6 {[%emt 0:00:10]} 3. d4 {[%emt 0:00:44]} exd4 {[%emt 0:00:06]} 4. Nxd4 {[%emt 0:00:05]} Bb4+ {[%emt 0:00:05]} 5. c3 {[%emt 0:00:24]} Bc5 {[%emt 0:00:05]} 6. Be3 {[%emt 0:00:08]} Bb6 {[%emt 0:00:05]} 7. Nf5 {[%emt 0:00:15]} d6 {[%emt 0:00:04]} 8. Nxg7+ {[%emt 0:26:51]} Kf8 {[%emt 0:00:11] [#] ...Bxe3 would now be deadly.} 9. Bxb6 {[%emt 0:01:56]} axb6 {[%emt 0:00:06] White is better.} 10. Nh5 {[%emt 0:00:59]} Nf6 {[%emt 0:00:05]} 11. Nxf6 {[%emt 0:14:39]} Qxf6 {[%emt 0:04:44]} 12. Nd2 {[%emt 0:00:32]} h5 {[%emt 0:02:58]} 13. Qf3 {[%emt 0:10:49]} Qh6 {[%emt 0:00:22]} 14. Bc4 {[%emt 0:17:40]} Ne5 {[%emt 0:01:39]} 15. Qe2 {[%emt 0:00:04]} h4 {[%emt 0:47:35]} 16. O-O-O {[%emt 0:06:17]} (16. f3 $16) 16... h3 $1 $11 {[%emt 0:02:10]} 17. gxh3 {[%emt 0:00:22]} Qf4 {[%emt 0:09:12]} 18. Kb1 {[%emt 0:06:45]} Rxh3 {[%emt 0:01:05]} 19. f3 {[%emt 0:00:45] Against Bg4} Nxf3 {[%emt 0:12:18]} 20. Qg2 {[%emt 0:04:56] [#]} Bg4 {[%emt 0:05:30] Active counter play!} (20... Nxh2 21. Rdf1 Nxf1 22. Rxf1 $16) (20... Qg4 $1 $17 {[%cal Rg4g2]} 21. Qe2 Ne5) 21. Rhf1 {[%emt 0:04:08]} (21. Ka1 $15) 21... Rxh2 $17 {[%emt 0:03:39]} 22. Rxf3 {[%emt 0:02:17]} Rxg2 {[%emt 0:00:05]} 23. Rxf4 {[%emt 0:00:02]} Bxd1 {[%emt 0:00:06]} 24. Rxf7+ {[%emt 0:00:19]} Ke8 {[%emt 0:00:05] And now ...b5 would win.} 25. Rxc7 {[%emt 0:01:15]} Rxd2 {[%emt 0:06:16]} 26. Kc1 {[%emt 0:00:05]} Rh2 {[%emt 0:02:08]} 27. Kxd1 {[%emt 0:00:13]} Rxb2 {[%emt 0:00:38][%mdl 4096] Endgame. KRR-KRB} 28. Kc1 {[%emt 0:01:44]} Rf2 {[%emt 0:01:20] Hoping for ...Ra5.} 29. Bd5 {[%emt 0:00:00]} Ra5 {[%emt 0:00:57]} ({Better is} 29... Ra3 $17 {Strongly threatening ...Kd8.} 30. Kb1 Ra5 31. Rxb7 Rb5+ 32. Kc1 Rbb2) 30. Rxb7 $15 {[%emt 0:00:08]} Rc5 {[%emt 0:00:05]} 31. c4 {[%emt 0:00:50]} Ra5 {[%emt 0:00:12]} 32. a4 {[%emt 0:00:23]} Kf8 {[%emt 0:01:09]} (32... Rxa4 $2 {is the wrong capture.} 33. Bc6+ (33. Rxb6 $2 {loses.} Ra1+ 34. Rb1 Rf1+ 35. Kc2 Raxb1 $19) 33... Kd8 34. Bxa4 $18) 33. Rb8+ {[%emt 0:00:05]} Kg7 {[%emt 0:00:40]} 34. Rxb6 $2 {[%emt 0:00:09][%mdl 8192] This costs White the game.} (34. Rb7+ $15 Kg6 35. Kb1 (35. Rxb6 $2 {too greedy.} Kf6 $17)) 34... Rxa4 $19 {[%emt 0:00:09]} 35. Kb1 {[%emt 0:00:04] Repels Ra1+} Raa2 {[%emt 0:00:35]} 36. Rb7+ {[%emt 0:01:43]} Kh6 {[%emt 0:00:54]} 37. Rf7 {[%emt 0:00:36]} Rfb2+ {[%emt 0:00:20]} 38. Kc1 {[%emt 0:00:05]} Rh2 {[%emt 0:00:34]} 39. Kb1 {[%emt 0:00:23] Against Ra1+} Rae2 {[%emt 0:00:11]} 40. Rf1 {[%emt 0:00:17] Against Re1+} Kg5 {[%emt 0:00:12]} 41. Rf5+ {[%emt 0:00:58]} Kg4 {[%emt 0:00:15]} 42. Rf1 {[%emt 0:00:02] Inhibits Re1+.} Kg3 {[%emt 0:00:09]} 43. Rg1+ {[%emt 0:00:56]} Kf4 {[%emt 0:00:39]} 44. Rf1+ {[%emt 0:00:13]} Ke5 {[%emt 0:00:21]} 45. Rg1 {[%emt 0:00:20]} Kd4 {[%emt 0:00:26] Black mates.} 46. Rd1+ {[%emt 0:00:07]} Kc3 {[%emt 0:00:24]} 47. Rc1+ {[%emt 0:00:08]} Kb4 {[%emt 0:01:33]} 48. Rg1 {[%emt 0:00:10]} Rb2+ {[%emt 0:00:21]} 49. Kc1 {[%emt 0:01:04]} Rb3 {[%emt 0:01:07]} 50. Rg6 {[%emt 0:01:17]} Re3 {[%emt 0:00:24][%cal Re3e1]} 51. Rg1 {[%emt 0:00:12]} Ka3 {[%emt 0:00:25]} 52. Rf1 {[%emt 0:00:57]} Rc3+ {[%emt 0:00:32]} 53. Kb1 {[%emt 0:00:28]} Rb2+ {[%emt 0:00:05]} 54. Ka1 {[%emt 0:00:06]} Ra2+ {[%emt 0:00:04]} 55. Kb1 {[%emt 0:00:04]} Rb3+ {[%emt 0:00:03] Weighted Error Value: White=0.46/Black=0.14 (very precise) .  Loses game:     	White=1     	---        Mistake:       	White=2     	Black=2      Inaccurate:     	White=3     	---        OK:         	White=14    	Black=8      Best:        	White=5     	Black=10     Strong:       	---       	Black=1} 0-1

[Event "VII Copa Marcel Duchamp 2024"]
[Site "Montevideo"]
[Date "2024.02.07"]
[Round "6.3"]
[White "Krysa, Leandro"]
[Black "Roselli Mailhe, Bernardo"]
[Result "1/2-1/2"]
[ECO "E61"]
[WhiteElo "2541"]
[BlackElo "2364"]
[Annotator "TA"]
[PlyCount "116"]
[EventDate "2024.02.05"]
[EventType "swiss"]
[EventCountry "URU"]
[SourceTitle "playchess.com"]
[Source "ChessBase"]
[SourceQuality "1"]
[TimeControl "5400+30"]

{[%evp 15,116,14,21,17,14,0,6,13,20,6,11,7,20,25,35,10,29,33,70,74,61,23,65,72,75,51,70,74,120,137,121,91,105,95,108,87,86,77,93,58,60,28,80,70,86,38,83,50,59,58,81,36,25,30,43,0,8,8,7,2,7,0,24,23,22,22,26,24,24,0,30,25,38,0,0,0,53,34,49,40,39,0,0,0,0,0,0,0,0,0,0,0,0,0,0,0,0,0,0,0,0,0,0]} 1. Nf3 {[%emt 0:00:07]} Nf6 {[%emt 0:00:23]} 2. c4 {[%emt 0:00:18]} g6 {[%emt 0:00:07]} 3. Nc3 {[%emt 0:00:45]} Bg7 {[%emt 0:00:21]} 4. d4 {[%emt 0:00:14]} O-O {[%emt 0:00:13]} 5. Bg5 {[%emt 0:00:23]} h6 {[%emt 0:01:06]} 6. Bh4 {[%emt 0:00:18]} c5 {[%emt 0:00:47]} 7. d5 {[%emt 0:01:45]} d6 {[%emt 0:00:28]} 8. e3 {[%emt 0:00:20]} Na6 {[%emt 0:00:40]} 9. Be2 {[%emt 0:01:02]} Nc7 {[%emt 0:00:36]} 10. a4 {[%emt 0:00:42]} g5 {[%emt 0:03:30]} 11. Bg3 {[%emt 0:00:15]} Nh5 {[%emt 0:00:06]} 12. Nd2 {[%emt 0:06:57]} Nxg3 {[%emt 0:00:09]} 13. hxg3 {[%emt 0:00:03]} b6 {[%emt 0:02:45]} 14. g4 {[%emt 0:11:12]} e6 {[%emt 0:06:19]} 15. Bf3 {[%emt 0:10:39]} exd5 {[%emt 0:08:36]} 16. Nxd5 {[%emt 0:01:48]} Bb7 {[%emt 0:04:07]} 17. Nxc7 {[%emt 0:10:06]} Qxc7 {[%emt 0:00:06]} 18. Qc2 {[%emt 0:01:13]} Rad8 {[%emt 0:03:09]} 19. Ne4 {[%emt 0:15:18][%cal Oe4f6,Bd2e4,Be4c3,Bc3d5][%mdl 32] [#] Nf6+! is the strong threat.} Rfe8 {[%emt 0:17:14]} ({Avoid the trap} 19... d5 $2 20. Nf6+ (20. Nxg5 Rfe8 $16) 20... Bxf6 21. Rxh6 $18) 20. Nc3 {[%emt 0:11:05]} Bxf3 {[%emt 0:00:25]} 21. gxf3 {[%emt 0:00:17]} a6 {[%emt 0:01:44]} (21... Bxc3+ $142 22. Qxc3 Re6) 22. Nd5 $16 {[%emt 0:04:06]} Qb7 {[%emt 0:00:21]} 23. Rd1 {[%emt 0:04:24]} b5 {[%emt 0:03:30]} 24. axb5 {[%emt 0:02:20]} axb5 {[%emt 0:00:05]} 25. b3 {[%emt 0:02:18]} bxc4 {[%emt 0:05:53]} 26. bxc4 {[%emt 0:00:08]} Rb8 {[%emt 0:00:06]} 27. O-O {[%emt 0:03:32]} Qb2 {[%emt 0:01:27]} 28. Qf5 {[%emt 0:01:14]} Qe5 {[%emt 0:02:46]} (28... Qe2 $11) 29. Qd3 {[%emt 0:05:44] White is more active.} (29. Qxe5 {simplifies} Bxe5 30. Kg2 Rb2 31. Rb1) 29... Rb7 $1 {[%emt 0:04:30]} 30. Rd2 {[%emt 0:01:42]} ({White should try} 30. Kg2 $16) 30... Ra8 {[%emt 0:03:52]} 31. Rfd1 {[%emt 0:00:28]} Qe6 {[%emt 0:00:56]} 32. Kg2 {[%emt 0:00:32]} Qg6 {[%emt 0:03:44]} 33. Qxg6 {[%emt 0:02:11]} fxg6 {[%emt 0:00:05]} 34. f4 {[%emt 0:00:43]} Ra4 {[%emt 0:02:39]} 35. fxg5 {[%emt 0:01:07]} hxg5 {[%emt 0:00:39]} 36. Rc2 {[%emt 0:00:22]} Kf7 {[%emt 0:02:32]} 37. Kf3 {[%emt 0:00:13]} Ke6 {[%emt 0:05:34]} 38. Ke4 {[%emt 0:00:04]} Rb2 {[%emt 0:03:29]} 39. Rdc1 {[%emt 0:01:35]} Rxc2 {[%emt 0:02:23]} 40. Rxc2 $11 {[%emt 0:00:02][%mdl 4096] Endgame. KRB-KRN} Be5 {[%emt 0:01:07]} 41. Nc7+ {[%emt 0:00:19]} Kd7 {[%emt 0:00:08]} 42. Nd5 {[%emt 0:00:09]} Ke6 {[%emt 0:00:05]} 43. f3 {[%emt 0:00:43]} Bg7 {[%emt 0:01:00]} 44. Nc7+ {[%emt 0:00:05]} Kd7 {[%emt 0:00:04]} 45. Nd5 {[%emt 0:00:33] [#] Threatens to win with Nb6+.} Ke6 {[%emt 0:00:04]} 46. f4 {[%emt 0:00:36]} gxf4 {[%emt 0:00:14]} 47. Nxf4+ {[%emt 0:00:24]} Kf7 {[%emt 0:01:37]} 48. g5 {[%emt 0:02:59]} Be5 {[%emt 0:01:51] The position is equal.} 49. Kd5 {[%emt 0:00:12]} Ra3 {[%emt 0:00:05]} 50. Rf2 {[%emt 0:00:50]} Bxf4 {[%emt 0:01:07]} 51. Rxf4+ {[%emt 0:00:17] KR-KR} Ke7 {[%emt 0:00:04]} 52. Rf6 {[%emt 0:01:01]} Rxe3 {[%emt 0:01:22]} 53. Rxg6 {[%emt 0:00:05]} Rd3+ {[%emt 0:00:16]} 54. Kc6 {[%emt 0:00:07]} Rd4 {[%emt 0:00:20]} 55. Kb5 {[%emt 0:00:44]} Kf7 {[%emt 0:00:35]} 56. Rf6+ {[%emt 0:00:28]} Kg7 {[%emt 0:00:09]} 57. Re6 {[%emt 0:00:15]} Kf7 {[%emt 0:00:47]} 58. Rf6+ {[%emt 0:00:05]} Kg7 {[%emt 0:00:03] Weighted Error Value: White=0.12 (very precise) /Black=0.09 (flawless) .  Mistake:       	White=1     	Black=2      Inaccurate:     	White=7     	Black=3      OK:         	White=17    	Black=18     Best:        	White=1     	Black=8      Strong:       	---       	Black=1} 1/2-1/2